[Event "Presidents Day NY GM A 2025"]
[Site "New York"]
[Date "2025.02.15"]
[Round "3.4"]
[White "Yang, Qindong"]
[Black "Nagy, Gabor"]
[Result "1/2-1/2"]
[Annotator "RC"]
[ECO "A67"]
[WhiteElo "2202"]
[BlackElo "2472"]
[PlyCount "61"]
[EventDate "2025.02.12"]
[EventType "tourn"]
[EventCountry "USA"]
[SourceTitle "playchess.com"]
[Source "ChessBase"]
[SourceQuality "1"]
[TimeControl "5400+30"]

1. d4 {[%emt 0:03:42]} Nf6 {[%emt 0:00:18]} 2. c4 {[%emt 0:00:19]} c5 {[%emt 0:00:48]} 3. d5 {[%emt 0:00:25]} e6 {[%emt 0:00:09]} 4. Nc3 {[%emt 0:00:18]} exd5 {[%emt 0:00:11]} 5. cxd5 {[%emt 0:00:05]} d6 {[%emt 0:00:15]} 6. e4 {[%emt 0:00:34]} g6 {[%emt 0:00:17]} 7. f4 {[%emt 0:00:25]} Bg7 {[%emt 0:00:24]} 8. Bb5+ {[%emt 0:00:11]} Nfd7 {[%emt 0:00:23]} 9. a4 {[%emt 0:00:13]} Qh4+ {[%emt 0:00:58]} 10. g3 {[%emt 0:00:09]} Qe7 {[%emt 0:00:07]} 11. Nf3 {[%emt 0:00:08]} O-O {[%emt 0:00:44]} 12. O-O {[%emt 0:02:11]} Na6 {[%emt 0:00:08]} 13. Re1 {[%emt 0:00:19]} Nb4 {[%emt 0:00:53]} 14. Bf1 {[%emt 0:01:21]} Rd8 {[%emt 0:01:49]} 15. h3 {[%emt 0:03:13]} a6 {[%emt 0:00:43]} 16. Bd2 {[%emt 0:04:48]} Rb8 {[%emt 0:00:35]} 17. Qb3 {[%emt 0:04:19]} Re8 {[%emt 0:02:13]} 18. Nd1 {[%emt 0:07:22]} Qd8 {[%emt 0:02:27]} 19. Nf2 {[%emt 0:09:17]} b5 {[%emt 0:02:00]} 20. axb5 {[%emt 0:00:57]} axb5 {[%emt 0:00:52]} 21. Bxb4 {[%emt 0:06:09]} cxb4 {[%emt 0:00:17]} 22. Qxb4 {[%emt 0:00:35]} Nc5 {[%emt 0:00:23]} 23. Rad1 {[%emt 0:05:52]} Qb6 {[%emt 0:01:04]} 24. Nd4 {[%emt 0:08:41]} Bd7 {[%emt 0:00:37]} 25. Nc6 {[%emt 0:11:28]} Bxc6 {[%emt 0:02:32]} 26. dxc6 {[%emt 0:00:02]} Qxc6 {[%emt 0:00:26]} 27. Bg2 {[%emt 0:00:50]} Qb6 {[%emt 0:03:42]} 28. Kh2 {[%emt 0:06:27]} Rec8 {[%emt 0:06:35]} 29. Re2 {[%emt 0:01:27]} Qa6 {[%emt 0:02:00]} 30. b3 {[%emt 0:06:19]} h5 {[%emt 0:02:54]} 31. h4 {[%emt 0:01:00]} 1/2-1/2

[Event "Presidents Day NY GM A 2025"]
[Site "New York"]
[Date "2025.02.15"]
[Round "3.5"]
[White "Park, Evan"]
[Black "Kaliksteyn, Alexander"]
[Result "1/2-1/2"]
[Annotator "RC"]
[ECO "B51"]
[WhiteElo "2415"]
[BlackElo "2337"]
[PlyCount "82"]
[EventDate "2025.02.12"]
[EventType "tourn"]
[EventCountry "USA"]
[SourceTitle "playchess.com"]
[Source "ChessBase"]
[SourceQuality "1"]
[TimeControl "5400+30"]

1. e4 {[%emt 0:02:00]} c5 {[%emt 0:00:05]} 2. Nf3 {[%emt 0:00:02]} d6 {[%emt 0:00:06]} 3. Bb5+ {[%emt 0:00:02]} Nd7 {[%emt 0:03:40]} 4. c4 {[%emt 0:00:30]} Ngf6 {[%emt 0:01:32]} 5. d3 {[%emt 0:00:51]} g6 {[%emt 0:01:44]} 6. Nc3 {[%emt 0:00:10]} Bg7 {[%emt 0:00:07]} 7. h3 {[%emt 0:00:04]} O-O {[%emt 0:00:25]} 8. Ba4 {[%emt 0:00:01]} Nb8 {[%emt 0:21:47]} 9. O-O {[%emt 0:01:11]} Bd7 {[%emt 0:00:50]} 10. Bxd7 {[%emt 0:05:52]} Nfxd7 {[%emt 0:01:24]} 11. Be3 {[%emt 0:02:47]} Nc6 {[%emt 0:00:17]} 12. d4 {[%emt 0:02:28]} Qb6 {[%emt 0:18:32]} 13. Na4 {[%emt 0:17:32]} Qa5 {[%emt 0:19:36]} 14. b3 {[%emt 0:09:31]} a6 {[%emt 0:00:46]} 15. d5 {[%emt 0:02:12]} Nce5 {[%emt 0:00:49]} 16. Nxe5 {[%emt 0:01:27]} Bxe5 {[%emt 0:04:19]} 17. Bd2 {[%emt 0:00:10]} Qd8 {[%emt 0:02:19]} 18. Rb1 {[%emt 0:02:44]} b5 {[%emt 0:00:09]} 19. Nb2 {[%emt 0:00:44]} Rb8 {[%emt 0:10:28]} 20. Qc2 {[%emt 0:01:18]} Nb6 {[%emt 0:01:18]} 21. Nd3 {[%emt 0:02:27]} Bd4 {[%emt 0:00:20]} 22. a4 {[%emt 0:03:52]} bxc4 {[%emt 0:01:30]} 23. bxc4 {[%emt 0:00:12]} Qd7 {[%emt 0:02:25]} 24. a5 {[%emt 0:01:44]} Qa4 {[%emt 0:00:04]} 25. Qxa4 {[%emt 0:01:18]} Nxa4 {[%emt 0:00:02]} 26. Rfc1 {[%emt 0:03:57]} Nb2 {[%emt 0:00:33]} 27. Nxb2 {[%emt 0:01:51]} Bxb2 {[%emt 0:00:46]} 28. Rc2 {[%emt 0:00:07]} Ba3 {[%emt 0:01:15]} 29. Rb6 {[%emt 0:05:21]} Rxb6 {[%emt 0:01:28]} 30. axb6 {[%emt 0:33:05]} Rb8 {[%emt 0:00:06]} 31. Ra2 {[%emt 0:00:00]} Bb4 {[%emt 0:00:18]} 32. Bxb4 {[%emt 0:00:00]} cxb4 {[%emt 0:00:05]} 33. Rxa6 {[%emt 0:00:00]} b3 {[%emt 0:00:05]} 34. Ra1 {[%emt 0:00:00]} Rxb6 {[%emt 0:00:06]} 35. f3 {[%emt 0:00:00]} Rb4 {[%emt 0:04:29]} 36. Rb1 {[%emt 0:00:00]} Kg7 {[%emt 0:00:43]} 37. Kf2 {[%emt 0:00:00]} Kf6 {[%emt 0:00:04]} 38. Ke2 {[%emt 0:00:00]} Rxc4 {[%emt 0:01:46]} 39. Rxb3 {[%emt 0:00:00]} Rc2+ {[%emt 0:00:06]} 40. Kf1 {[%emt 0:00:00]} g5 {[%emt 0:01:39]} 41. Rb8 {[%emt 0:00:00]} h5 {[%emt 0:00:45]} 1/2-1/2

[Event "Presidents Day NY GM A 2025"]
[Site "New York"]
[Date "2025.02.15"]
[Round "4.1"]
[White "Gauri, Shankar"]
[Black "Kaliksteyn, Alexander"]
[Result "1-0"]
[Annotator "ChessBase"]
[ECO "E04"]
[WhiteElo "2360"]
[BlackElo "2337"]
[PlyCount "97"]
[EventDate "2025.02.12"]
[EventType "tourn"]
[EventCountry "USA"]
[SourceTitle "playchess.com"]
[Source "ChessBase"]
[SourceQuality "1"]
[TimeControl "5400+30"]

1. Nf3 {[%emt 0:09:29]} d5 {[%emt 0:01:42]} 2. g3 {[%emt 0:00:24]} c5 {[%emt 0:01:41]} 3. Bg2 {[%emt 0:00:15]} Nc6 {[%emt 0:01:13]} 4. d4 {[%emt 0:00:27]} e6 {[%emt 0:02:11]} 5. O-O {[%emt 0:00:36]} Nf6 {[%emt 0:00:13]} 6. c4 {[%emt 0:00:47]} dxc4 {[%emt 0:00:12]} 7. dxc5 {[%emt 0:00:48]} Qxd1 {[%emt 0:00:55]} 8. Rxd1 {[%emt 0:00:07]} Bxc5 {[%emt 0:00:05]} 9. Nbd2 {[%emt 0:00:27]} c3 {[%emt 0:01:50]} 10. bxc3 {[%emt 0:00:39]} O-O {[%emt 0:01:10]} 11. Nb3 {[%emt 0:00:12]} Be7 {[%emt 0:00:08]} 12. c4 {[%emt 0:01:06]} Bd7 {[%emt 0:01:14]} 13. Bb2 {[%emt 0:04:35]} Rfc8 {[%emt 0:01:13]} 14. Rac1 {[%emt 0:03:41]} Be8 {[%emt 0:14:40]} 15. Nfd4 {[%emt 0:05:01]} a5 {[%emt 0:31:06]} 16. Nb5 {[%emt 0:12:33]} a4 {[%emt 0:00:42]} 17. N3d4 {[%emt 0:01:01]} Nxd4 {[%emt 0:02:05]} 18. Bxd4 {[%emt 0:06:09]} Bxb5 {[%emt 0:03:04]} 19. cxb5 {[%emt 0:00:14]} Nd5 {[%emt 0:00:06]} 20. Bxd5 {[%emt 0:04:18]} exd5 {[%emt 0:00:10]} 21. Be3 {[%emt 0:05:20]} f6 {[%emt 0:12:35]} 22. Rxd5 {[%emt 0:06:02]} Rxc1+ {[%emt 0:00:06]} 23. Bxc1 {[%emt 0:00:08]} Rc8 {[%emt 0:00:04]} 24. Be3 {[%emt 0:00:44]} Rc2 {[%emt 0:00:54]} 25. Rd2 {[%emt 0:21:10]} Rxd2 {[%emt 0:00:19]} 26. Bxd2 {[%emt 0:00:01]} Kf7 {[%emt 0:00:07]} 27. e4 {[%emt 0:00:32]} Ke6 {[%emt 0:00:03]} 28. Bc3 {[%emt 0:02:51]} Ba3 {[%emt 0:00:25]} 29. f4 {[%emt 0:01:08]} Kd6 {[%emt 0:01:10]} 30. e5+ {[%emt 0:01:33]} fxe5 {[%emt 0:00:06]} 31. Bxe5+ {[%emt 0:00:03]} Kc5 {[%emt 0:00:06]} 32. Bxg7 {[%emt 0:00:22]} Kxb5 {[%emt 0:00:03]} 33. Kf2 {[%emt 0:02:29]} Kc4 {[%emt 0:00:15]} 34. Ke2 {[%emt 0:00:32]} b5 {[%emt 0:00:53]} 35. Kd2 {[%emt 0:05:12]} Bc5 {[%emt 0:01:29]} 36. Be5 {[%emt 0:03:59]} b4 {[%emt 0:01:24]} 37. g4 {[%emt 0:00:23]} b3 {[%emt 0:02:18]} 38. axb3+ {[%emt 0:00:07]} axb3 {[%emt 0:00:02]} 39. h4 {[%emt 0:01:29]} Bb4+ {[%emt 0:01:47]} 40. Kc1 {[%emt 0:00:09]} Ba3+ {[%emt 0:03:18]} 41. Bb2 {[%emt 0:00:57]} Bd6 {[%emt 0:01:12]} 42. f5 {[%emt 0:00:03]} Bg3 {[%emt 0:12:10]} 43. f6 {[%emt 0:00:28]} Bxh4 {[%emt 0:01:54]} 44. f7 {[%emt 0:00:01]} Bg5+ {[%emt 0:01:20]} 45. Kb1 {[%emt 0:00:12]} Bh6 {[%emt 0:00:18]} 46. Ba3 {[%emt 0:00:17]} Kd5 {[%emt 0:00:22]} 47. f8=Q {[%emt 0:04:59]} Bxf8 {[%emt 0:00:05]} 48. Bxf8 {[%emt 0:00:00]} Ke4 {[%emt 0:00:05]} 49. Bh6 {[%emt 0:00:00]} 1-0

[Event "Presidents Day NY GM A 2025"]
[Site "New York"]
[Date "2025.02.15"]
[Round "4.2"]
[White "Nagy, Gabor"]
[Black "Park, Evan"]
[Result "1/2-1/2"]
[Annotator "RC"]
[ECO "E06"]
[WhiteElo "2472"]
[BlackElo "2415"]
[PlyCount "91"]
[EventDate "2025.02.12"]
[EventType "tourn"]
[EventCountry "USA"]
[SourceTitle "playchess.com"]
[Source "ChessBase"]
[SourceQuality "1"]
[TimeControl "5400+30"]

1. d4 {[%emt 0:00:03]} Nf6 {[%emt 0:01:23]} 2. c4 {[%emt 0:01:10]} e6 {[%emt 0:01:07]} 3. Nf3 {[%emt 0:00:20]} d5 {[%emt 0:00:08]} 4. g3 {[%emt 0:00:31]} Be7 {[%emt 0:00:51]} 5. Bg2 {[%emt 0:00:37]} O-O {[%emt 0:00:05]} 6. O-O {[%emt 0:00:46]} a5 {[%emt 0:01:02]} 7. Qc2 {[%emt 0:01:16]} a4 {[%emt 0:00:15]} 8. Nbd2 {[%emt 0:01:14]} Nc6 {[%emt 0:00:47]} 9. Rd1 {[%emt 0:03:35]} Nb4 {[%emt 0:07:16]} 10. Qb1 {[%emt 0:05:24]} c5 {[%emt 0:04:37]} 11. a3 {[%emt 0:01:03]} Nc6 {[%emt 0:03:34]} 12. dxc5 {[%emt 0:00:39]} Bxc5 {[%emt 0:04:45]} 13. b4 {[%emt 0:00:33]} axb3 {[%emt 0:01:05]} 14. Nxb3 {[%emt 0:00:10]} Ba7 {[%emt 0:04:53]} 15. e3 {[%emt 0:00:40]} Qe7 {[%emt 0:02:41]} 16. cxd5 {[%emt 0:04:55]} exd5 {[%emt 0:00:05]} 17. a4 {[%emt 0:00:45]} Rd8 {[%emt 0:03:05]} 18. Ba3 {[%emt 0:01:04]} Qe8 {[%emt 0:00:50]} 19. Bc5 {[%emt 0:03:11]} Ne4 {[%emt 0:06:49]} 20. Bxa7 {[%emt 0:00:22]} Rxa7 {[%emt 0:00:22]} 21. Qb2 {[%emt 0:00:32]} Bg4 {[%emt 0:02:32]} 22. h3 {[%emt 0:02:38]} Bh5 {[%emt 0:01:02]} 23. Nbd4 {[%emt 0:01:18]} Nxd4 {[%emt 0:05:52]} 24. Nxd4 {[%emt 1:09:44]} Qe5 {[%emt 0:02:43]} 25. g4 {[%emt 0:00:00]} Bg6 {[%emt 0:03:13]} 26. f4 {[%emt 0:00:00]} Qb8 {[%emt 0:01:22]} 27. f5 {[%emt 0:00:00]} Qg3 {[%emt 0:00:09]} 28. Nf3 {[%emt 0:00:00]} Ra6 {[%emt 0:07:07]} 29. fxg6 {[%emt 0:00:00]} Rxg6 {[%emt 0:00:27]} 30. Rf1 {[%emt 0:00:00]} Rh6 {[%emt 0:04:13]} 31. Qxb7 {[%emt 0:00:00]} Rxh3 {[%emt 0:00:15]} 32. Qe7 {[%emt 0:00:00]} Rc8 {[%emt 0:02:15]} 33. Rac1 {[%emt 0:00:00]} Rf8 {[%emt 0:04:04]} 34. Rc2 {[%emt 0:00:00]} Nf6 {[%emt 0:01:19]} 35. g5 {[%emt 0:00:00]} Ng4 {[%emt 0:01:02]} 36. Qc7 {[%emt 0:00:00]} Nxe3 {[%emt 0:01:10]} 37. Qd7 {[%emt 0:00:00]} Rh5 {[%emt 0:01:26]} 38. Re2 {[%emt 0:00:00]} Nxf1 {[%emt 0:01:07]} 39. Re8 {[%emt 0:00:00]} g6 {[%emt 0:01:01]} 40. Rxf8+ {[%emt 0:00:00]} Kxf8 {[%emt 0:00:02]} 41. Qd8+ {[%emt 0:00:00]} Kg7 {[%emt 0:00:02]} 42. Qf6+ {[%emt 0:00:00]} Kg8 {[%emt 0:00:06]} 43. Qd8+ {[%emt 0:00:00]} Kg7 {[%emt 0:00:02]} 44. Qf6+ {[%emt 0:00:00]} Kg8 {[%emt 0:00:16]} 45. Qd8+ {[%emt 0:00:00]} Kg7 {[%emt 0:00:09]} 46. Qf6+ {[%emt 0:00:00]} 1/2-1/2

[Event "Presidents Day NY GM A 2025"]
[Site "New York"]
[Date "2025.02.15"]
[Round "4.3"]
[White "Stearman, Josiah"]
[Black "Yang, Qindong"]
[Result "1/2-1/2"]
[Annotator "ChessBase"]
[ECO "B90"]
[WhiteElo "2439"]
[BlackElo "2202"]
[PlyCount "64"]
[EventDate "2025.02.12"]
[EventType "tourn"]
[EventCountry "USA"]
[SourceTitle "playchess.com"]
[Source "ChessBase"]
[SourceQuality "1"]
[TimeControl "5400+30"]

1. e4 {[%emt 0:19:11]} c5 {[%emt 0:00:19]} 2. Nf3 {[%emt 0:00:07]} d6 {[%emt 0:00:04]} 3. d4 {[%emt 0:00:08]} cxd4 {[%emt 0:00:03]} 4. Nxd4 {[%emt 0:00:04]} Nf6 {[%emt 0:00:03]} 5. Nc3 {[%emt 0:00:06]} a6 {[%emt 0:00:04]} 6. Be3 {[%emt 0:00:05]} e5 {[%emt 0:00:22]} 7. Nf3 {[%emt 0:00:08]} Qc7 {[%emt 0:01:04]} 8. a4 {[%emt 0:00:37]} Be7 {[%emt 0:06:32]} 9. a5 {[%emt 0:07:25]} Be6 {[%emt 0:01:08]} 10. Be2 {[%emt 0:06:27]} Nc6 {[%emt 0:03:23]} 11. Bb6 {[%emt 0:00:45]} Qd7 {[%emt 0:02:12]} 12. O-O {[%emt 0:01:59]} Bd8 {[%emt 0:02:18]} 13. Ra4 {[%emt 0:10:35]} Bxb6 {[%emt 0:04:43]} 14. axb6 {[%emt 0:00:19]} O-O {[%emt 0:00:46]} 15. Qd2 {[%emt 0:06:24]} Qd8 {[%emt 0:14:17]} 16. Ng5 {[%emt 0:03:42]} Qxb6 {[%emt 0:07:46]} 17. Nxe6 {[%emt 0:02:56]} fxe6 {[%emt 0:00:03]} 18. Qxd6 {[%emt 0:00:17]} Qxb2 {[%emt 0:01:24]} 19. Rc4 {[%emt 0:12:09]} Qxc2 {[%emt 0:05:55]} 20. Bd1 {[%emt 0:00:21]} Qb2 {[%emt 0:11:41]} 21. Na4 {[%emt 0:00:12]} Qb5 {[%emt 0:08:07]} 22. Rc5 {[%emt 0:00:14]} Qb1 {[%emt 0:00:51]} 23. Nc3 {[%emt 0:07:37]} Qb2 {[%emt 0:02:59]} 24. Ba4 {[%emt 0:01:43]} Kh8 {[%emt 0:06:09]} 25. Bxc6 {[%emt 0:05:58]} bxc6 {[%emt 0:00:02]} 26. Qxe6 {[%emt 0:01:27]} a5 {[%emt 0:03:00]} 27. Qxc6 {[%emt 0:00:22]} h6 {[%emt 0:07:29]} 28. h3 {[%emt 0:00:29]} Qc2 {[%emt 0:01:15]} 29. Qd6 {[%emt 0:03:10]} a4 {[%emt 0:02:44]} 30. Rc7 {[%emt 0:00:10]} Rfc8 {[%emt 0:01:44]} 31. Qc6 {[%emt 0:02:01]} Rxc7 {[%emt 0:00:47]} 32. Qxa8+ {[%emt 0:00:02]} Kh7 {[%emt 0:00:14]} 1/2-1/2

[Event "Presidents Day NY GM A 2025"]
[Site "New York"]
[Date "2025.02.15"]
[Round "4.4"]
[White "Paragua, Mark"]
[Black "Lenderman, Aleksandr"]
[Result "1/2-1/2"]
[Annotator "RC"]
[ECO "C01"]
[WhiteElo "2446"]
[BlackElo "2480"]
[PlyCount "34"]
[EventDate "2025.02.12"]
[EventType "tourn"]
[EventCountry "USA"]
[SourceTitle "playchess.com"]
[Source "ChessBase"]
[SourceQuality "1"]
[TimeControl "5400+30"]

1. e4 {[%emt 0:00:04]} e6 {[%emt 0:00:29]} 2. d4 {[%emt 0:00:13]} d5 {[%emt 0:00:14]} 3. exd5 {[%emt 0:00:23]} exd5 {[%emt 0:00:04]} 4. Nf3 {[%emt 0:00:09]} Nf6 {[%emt 0:00:08]} 5. h3 {[%emt 0:00:27]} Bd6 {[%emt 0:00:39]} 6. Bd3 {[%emt 0:00:12]} Qe7+ {[%emt 0:00:35]} 7. Qe2 {[%emt 0:00:49]} Qxe2+ {[%emt 0:00:07]} 8. Kxe2 {[%emt 0:00:09]} O-O {[%emt 0:00:06]} 9. Re1 {[%emt 0:00:17]} Re8+ {[%emt 0:00:05]} 10. Kf1 {[%emt 0:00:27]} Rxe1+ {[%emt 0:00:04]} 11. Kxe1 {[%emt 0:00:07]} Nc6 {[%emt 0:00:04]} 12. c3 {[%emt 0:00:07]} Ne7 {[%emt 0:00:03]} 13. Bg5 {[%emt 0:00:43]} Nh5 {[%emt 0:01:47]} 14. Nbd2 {[%emt 0:02:26]} Nf4 {[%emt 0:01:09]} 15. Bxf4 {[%emt 0:00:26]} Bxf4 {[%emt 0:00:05]} 16. Kf1 {[%emt 0:00:14]} Bf5 {[%emt 0:00:05]} 17. Bxf5 {[%emt 0:00:05]} Nxf5 {[%emt 0:00:05]} 1/2-1/2

[Event "Presidents Day NY GM A 2025"]
[Site "New York"]
[Date "2025.02.15"]
[Round "4.5"]
[White "Putnam, Liam"]
[Black "Jacobson, Aaron"]
[Result "1/2-1/2"]
[Annotator "ChessBase"]
[ECO "D02"]
[WhiteElo "2402"]
[BlackElo "2343"]
[PlyCount "109"]
[EventDate "2025.02.12"]
[EventType "tourn"]
[EventCountry "USA"]
[SourceTitle "playchess.com"]
[Source "ChessBase"]
[SourceQuality "1"]
[TimeControl "5400+30"]

1. d4 {[%emt 0:02:05]} d5 {[%emt 0:00:48]} 2. Nf3 {[%emt 0:03:59]} Nf6 {[%emt 0:02:56]} 3. Bf4 {[%emt 0:03:06]} c5 {[%emt 0:06:32]} 4. e3 {[%emt 0:00:24]} Nc6 {[%emt 0:00:12]} 5. Nbd2 {[%emt 0:01:25]} e6 {[%emt 0:00:06]} 6. c3 {[%emt 0:00:12]} Be7 {[%emt 0:00:50]} 7. Ne5 {[%emt 0:01:20]} Nxe5 {[%emt 0:05:09]} 8. dxe5 {[%emt 1:21:59]} Nd7 {[%emt 0:02:18]} 9. Bd3 {[%emt 0:00:00]} g5 {[%emt 0:05:09]} 10. Bg3 {[%emt 0:00:00]} h5 {[%emt 0:00:06]} 11. h3 {[%emt 0:00:00]} Qc7 {[%emt 0:03:16]} 12. e4 {[%emt 0:00:00]} Nxe5 {[%emt 0:18:55]} 13. O-O {[%emt 0:00:00]} Bd6 {[%emt 0:08:04]} 14. Bxe5 {[%emt 0:00:00]} Bxe5 {[%emt 0:00:16]} 15. exd5 {[%emt 0:00:00]} exd5 {[%emt 0:02:05]} 16. Re1 {[%emt 0:00:00]} Kf8 {[%emt 0:05:56]} 17. Nf3 {[%emt 0:00:00]} Bf6 {[%emt 0:01:55]} 18. Qd2 {[%emt 0:00:00]} Qf4 {[%emt 0:08:30]} 19. Qxf4 {[%emt 0:00:00]} gxf4 {[%emt 0:00:02]} 20. Rad1 {[%emt 0:00:00]} Kg7 {[%emt 0:06:40]} 21. c4 {[%emt 0:00:00]} Be6 {[%emt 0:08:27]} 22. cxd5 {[%emt 0:00:00]} Bxd5 {[%emt 0:00:02]} 23. b3 {[%emt 0:00:00]} Rhe8 {[%emt 0:02:01]} 24. Kf1 {[%emt 0:00:00]} a6 {[%emt 0:02:26]} 25. Rxe8 {[%emt 0:00:00]} Rxe8 {[%emt 0:00:02]} 26. Rc1 {[%emt 0:00:00]} Rc8 {[%emt 0:01:20]} 27. Nd2 {[%emt 0:00:00]} b5 {[%emt 0:02:37]} 28. a4 {[%emt 0:00:00]} c4 {[%emt 0:01:28]} 29. Bf5 {[%emt 0:00:00]} Be6 {[%emt 0:04:33]} 30. Bxe6 {[%emt 0:00:00]} fxe6 {[%emt 0:00:01]} 31. Ne4 {[%emt 0:04:25]} c3 {[%emt 0:02:11]} 32. Ke2 {[%emt 0:01:30]} bxa4 {[%emt 0:00:58]} 33. bxa4 {[%emt 0:00:21]} Rc4 {[%emt 0:00:04]} 34. Nd6 {[%emt 0:01:07]} Rxa4 {[%emt 0:00:57]} 35. Ne8+ {[%emt 0:00:01]} Kf7 {[%emt 0:00:17]} 36. Nxf6 {[%emt 0:00:05]} Kxf6 {[%emt 0:00:07]} 37. Rxc3 {[%emt 0:00:03]} Ra2+ {[%emt 0:00:16]} 38. Kf3 {[%emt 0:01:17]} Kf5 {[%emt 0:01:14]} 39. g3 {[%emt 0:00:27]} fxg3 {[%emt 0:00:33]} 40. fxg3 {[%emt 0:00:05]} a5 {[%emt 0:00:33]} 41. Rc5+ {[%emt 0:03:14]} e5 {[%emt 0:00:08]} 42. g4+ {[%emt 0:00:09]} hxg4+ {[%emt 0:00:03]} 43. hxg4+ {[%emt 0:00:05]} Ke6 {[%emt 0:00:10]} 44. g5 {[%emt 0:00:55]} a4 {[%emt 0:01:29]} 45. g6 {[%emt 0:00:04]} Kf6 {[%emt 0:00:38]} 46. Rxe5 {[%emt 0:02:29]} a3 {[%emt 0:00:38]} 47. Rg5 {[%emt 0:00:50]} Kg7 {[%emt 0:00:12]} 48. Rg1 {[%emt 0:00:14]} Rb2 {[%emt 0:00:21]} 49. Ra1 {[%emt 0:00:07]} a2 {[%emt 0:00:04]} 50. Ke3 {[%emt 0:00:03]} Kxg6 {[%emt 0:00:04]} 51. Kd3 {[%emt 0:00:03]} Kh7 {[%emt 0:00:06]} 52. Kc3 {[%emt 0:00:05]} Rh2 {[%emt 0:00:03]} 53. Kb3 {[%emt 0:00:02]} Kh8 {[%emt 0:00:04]} 54. Rxa2 {[%emt 0:00:10]} Rxa2 {[%emt 0:00:05]} 55. Kxa2 {[%emt 0:00:04]} 1/2-1/2

[Event "Presidents Day NY GM A 2025"]
[Site "New York"]
[Date "2025.02.16"]
[Round "5.1"]
[White "Jacobson, Aaron"]
[Black "Gauri, Shankar"]
[Result "1-0"]
[Annotator "RC"]
[ECO "D53"]
[WhiteElo "2343"]
[BlackElo "2360"]
[PlyCount "85"]
[EventDate "2025.02.12"]
[EventType "tourn"]
[EventCountry "USA"]
[SourceTitle "playchess.com"]
[Source "ChessBase"]
[SourceQuality "1"]
[TimeControl "5400+30"]

1. c4 {[%emt 0:00:05]} Nf6 {[%emt 0:16:42]} 2. Nc3 {[%emt 0:00:21]} e6 {[%emt 0:02:34]} 3. Nf3 {[%emt 0:03:28]} d5 {[%emt 0:04:02]} 4. d4 {[%emt 0:04:32]} c6 {[%emt 0:01:49]} 5. Bg5 {[%emt 0:00:29]} Nbd7 {[%emt 0:01:03]} 6. e3 {[%emt 0:00:17]} h6 {[%emt 0:00:32]} 7. Bf4 {[%emt 0:04:45]} Be7 {[%emt 0:01:08]} 8. Qc2 {[%emt 1:20:33]} dxc4 {[%emt 0:09:31]} 9. Bxc4 {[%emt 0:00:00]} b5 {[%emt 0:00:09]} 10. Be2 {[%emt 0:00:00]} Bb7 {[%emt 0:01:13]} 11. O-O {[%emt 0:00:00]} O-O {[%emt 0:00:05]} 12. Rfd1 {[%emt 0:00:00]} Rc8 {[%emt 0:01:41]} 13. Ne5 {[%emt 0:00:00]} a6 {[%emt 0:26:31]} 14. Nd3 {[%emt 0:00:00]} Nd5 {[%emt 0:11:37]} 15. Ne4 {[%emt 0:00:00]} Nxf4 {[%emt 0:00:59]} 16. exf4 {[%emt 0:00:00]} Qc7 {[%emt 0:02:42]} 17. Rac1 {[%emt 0:00:00]} Rfd8 {[%emt 0:04:23]} 18. g3 {[%emt 0:00:00]} c5 {[%emt 0:12:49]} 19. Nexc5 {[%emt 0:00:00]} Nxc5 {[%emt 0:00:00]} 20. dxc5 {[%emt 0:00:00]} Qc6 {[%emt 0:00:00]} 21. f3 {[%emt 0:00:00]} a5 {[%emt 0:00:00]} 22. a3 {[%emt 0:00:00]} b4 {[%emt 0:00:00]} 23. axb4 {[%emt 0:00:00]} axb4 {[%emt 0:00:00]} 24. Kg2 {[%emt 0:00:00]} Rd4 {[%emt 0:00:51]} 25. Ne5 {[%emt 0:00:27]} Qxc5 {[%emt 0:02:06]} 26. Qxc5 {[%emt 0:00:44]} Rxc5 {[%emt 0:00:09]} 27. Rxd4 {[%emt 0:00:06]} Rxc1 {[%emt 0:00:03]} 28. Rd7 {[%emt 0:00:04]} Rc2 {[%emt 0:01:11]} 29. Rxb7 {[%emt 0:01:36]} Bc5 {[%emt 0:00:19]} 30. Nd3 {[%emt 0:01:32]} Rxe2+ {[%emt 0:00:20]} 31. Kf1 {[%emt 0:00:02]} Rxh2 {[%emt 0:00:15]} 32. Nxc5 {[%emt 0:00:04]} Rxb2 {[%emt 0:00:02]} 33. Nd3 {[%emt 0:00:57]} Rb1+ {[%emt 0:00:16]} 34. Kg2 {[%emt 0:00:40]} b3 {[%emt 0:00:08]} 35. Ne5 {[%emt 0:02:35]} f6 {[%emt 0:00:33]} 36. Nd3 {[%emt 0:05:13]} g5 {[%emt 0:00:12]} 37. fxg5 {[%emt 0:00:00]} hxg5 {[%emt 0:00:04]} 38. Nc5 {[%emt 0:00:00]} Rb2+ {[%emt 0:02:38]} 39. Kh3 {[%emt 0:00:00]} f5 {[%emt 0:00:52]} 40. Nxe6 {[%emt 0:00:00]} g4+ {[%emt 0:00:30]} 41. fxg4 {[%emt 0:00:00]} fxg4+ {[%emt 0:00:06]} 42. Kxg4 {[%emt 0:00:00]} Re2 {[%emt 0:00:15]} 43. Rb8+ {[%emt 0:00:14]} 1-0

[Event "Presidents Day NY GM A 2025"]
[Site "New York"]
[Date "2025.02.16"]
[Round "5.2"]
[White "Lenderman, Aleksandr"]
[Black "Putnam, Liam"]
[Result "0-1"]
[Annotator "RC"]
[ECO "D35"]
[WhiteElo "2480"]
[BlackElo "2402"]
[PlyCount "60"]
[EventDate "2025.02.12"]
[EventType "tourn"]
[EventCountry "USA"]
[SourceTitle "playchess.com"]
[Source "ChessBase"]
[SourceQuality "1"]
[TimeControl "5400+30"]

1. d4 {[%emt 0:00:01]} Nf6 {[%emt 0:00:07]} 2. c4 {[%emt 0:00:03]} e6 {[%emt 0:00:09]} 3. Nf3 {[%emt 0:00:06]} d5 {[%emt 0:00:09]} 4. Nc3 {[%emt 0:00:06]} Nbd7 {[%emt 0:00:30]} 5. cxd5 {[%emt 0:05:01]} exd5 {[%emt 0:00:27]} 6. Qc2 {[%emt 0:00:21]} Bb4 {[%emt 0:23:15]} 7. a3 {[%emt 0:01:46]} Bxc3+ {[%emt 0:00:57]} 8. bxc3 {[%emt 0:02:36]} O-O {[%emt 0:02:17]} 9. Bf4 {[%emt 0:01:48]} c5 {[%emt 0:00:52]} 10. e3 {[%emt 0:01:05]} Qa5 {[%emt 0:02:10]} 11. Bd3 {[%emt 0:08:44]} b6 {[%emt 0:10:31]} 12. Ne5 {[%emt 0:01:50]} c4 {[%emt 0:02:38]} 13. Be2 {[%emt 0:00:26]} Nxe5 {[%emt 0:04:13]} 14. Bxe5 {[%emt 0:00:07]} Ne4 {[%emt 0:00:30]} 15. Rc1 {[%emt 0:00:21]} Qxa3 {[%emt 0:00:37]} 16. O-O {[%emt 0:00:18]} Bf5 {[%emt 0:03:29]} 17. Bf3 {[%emt 0:14:29]} Ng3 {[%emt 0:05:20]} 18. e4 {[%emt 0:00:15]} Bxe4 {[%emt 0:02:44]} 19. Bxe4 {[%emt 0:00:07]} Nxe4 {[%emt 0:00:03]} 20. f3 {[%emt 0:00:06]} Ng5 {[%emt 0:00:19]} 21. Qf5 {[%emt 0:00:05]} Ne6 {[%emt 0:00:21]} 22. f4 {[%emt 0:00:32]} Qe7 {[%emt 0:00:23]} 23. Rce1 {[%emt 0:01:54]} Rae8 {[%emt 0:02:16]} 24. Re3 {[%emt 0:00:25]} f6 {[%emt 0:01:17]} 25. Bb8 {[%emt 0:00:05]} Qd7 {[%emt 0:03:26]} 26. Bxa7 {[%emt 0:00:32]} Nc5 {[%emt 0:00:21]} 27. Rxe8 {[%emt 0:02:39]} Rxe8 {[%emt 0:00:30]} 28. Qh5 {[%emt 0:03:42]} g6 {[%emt 0:00:30]} 29. Qf3 {[%emt 0:00:56]} Ne4 {[%emt 0:00:36]} 30. Bxb6 {[%emt 0:00:58]} Nd2 {[%emt 0:00:06]} 0-1